bitfinex/quotes_BTCUSD_20241208
["timestamp","ask_amount","ask_price","bid_price","bid_amount"]
[1733648103121,0.44239599,99271.0,99270.0,0.00096599]
[1733648104326,0.44639599,99271.0,99270.0,0.00096599]
[1733648105977,0.24639599,99271.0,99270.0,0.00096599]
[1733648106386,0.2660655,99271.0,99270.0,0.00096599]
[1733648106638,0.4473865,99271.0,99270.0,0.00096599]
[1733648107368,0.45732778,99271.0,99270.0,0.00096599]
[1733648107827,0.37977996,99271.0,99270.0,0.00096599]
[1733648110868,0.36983868,99271.0,99270.0,0.00096599]
[1733648111102,0.31171768,99271.0,99270.0,0.00096599]
[1733648115642,0.10002951,99271.0,99270.0,0.00096599]
[1733648115857,0.10560896,99271.0,99270.0,0.00096599]
[1733648116547,0.28692996,99271.0,99270.0,0.00096599]
[1733648116764,0.30715599,99271.0,99270.0,0.00096599]
[1733648117277,0.39005599,99271.0,99270.0,0.00096599]
[1733648119429,0.181329,99267.0,99266.0,6e-05]
[1733648119670,0.28135851,99267.0,99266.0,0.00011772]
[1733648119861,0.36635951,99267.0,99266.0,0.00011772]
[1733648120121,0.37193896,99267.0,99266.0,0.00011772]
[1733648120783,0.38093896,99267.0,99266.0,0.00011772]
[1733648121939,0.079,99266.0,99265.0,0.00890033]
[1733648122193,0.079,99266.0,99265.0,0.00895781]
[1733648122194,0.22902951,99266.0,99265.0,0.00895781]
[1733648122443,0.23460816,99266.0,99265.0,0.00895781]
[1733648122663,0.412664,99265.0,99252.0,0.005]
[1733648122882,0.181343,99259.0,99252.0,0.005]
[1733648123347,0.10002951,99258.0,99252.0,0.005]
[1733648123570,0.10560952,99258.0,99252.0,0.005]
[1733648124084,0.23190952,99258.0,99252.0,0.005]
[1733648124759,0.23690952,99258.0,99252.0,0.005]
[1733648125249,0.33672486,99258.0,99252.0,0.005]
[1733648125501,0.33372486,99258.0,99252.0,0.005]
[1733648125944,0.33172486,99258.0,99252.0,0.005]
[1733648126421,0.23490952,99258.0,99252.0,0.005]
[1733648126645,0.00858001,99258.0,99252.0,0.005]
[1733648127311,0.01558001,99258.0,99252.0,0.005]
[1733648132046,0.00526252,99258.0,99252.0,0.005]
[1733648132697,0.181343,99259.0,99252.0,0.005]
[1733648132698,0.00526252,99258.0,99252.0,0.005]
[1733648132930,0.181343,99259.0,99252.0,0.005]
[1733648133147,0.00526388,99258.0,99252.0,0.005]
[1733648133643,0.10529339,99258.0,99252.0,0.005]
[1733648133870,0.275454,99258.0,99252.0,0.005]
[1733648134308,0.18209339,99258.0,99252.0,0.005]
[1733648134965,0.18509339,99258.0,99252.0,0.005]
[1733648141596,0.00826388,99258.0,99252.0,0.005]
[1733648141826,23.98663625,99260.0,99252.0,0.005]
[1733648142047,0.00661637,99258.0,99252.0,0.005]
[1733648142273,23.98663625,99260.0,99252.0,0.005]
[1733648142510,0.00661637,99258.0,99252.0,0.005]
[1733648142780,23.98663625,99260.0,99252.0,0.005]
[1733648142781,0.181343,99259.0,99252.0,0.005]
[1733648142997,0.10002951,99258.0,99252.0,0.005]
[1733648143225,0.18284586,99258.0,99252.0,0.005]
[1733648143442,0.16418886,99259.0,99252.0,0.005]
[1733648143675,0.00728019,99258.0,99252.0,0.005]
[1733648144794,0.00728019,99258.0,99257.0,0.003]
[1733648145228,0.00728019,99258.0,99257.0,0.002]
[1733648145485,0.01228019,99258.0,99257.0,0.002]
[1733648145723,0.05888019,99258.0,99257.0,0.002]
[1733648146410,0.05988019,99258.0,99257.0,0.002]
[1733648146630,0.36394378,99258.0,99257.0,0.002]
[1733648147302,0.36394378,99258.0,99252.0,0.005]
[1733648147303,0.05,99253.0,99252.0,0.005]
[1733648147539,0.15002951,99253.0,99252.0,0.005]
[1733648147796,0.15734588,99253.0,99252.0,0.005]
[1733648148290,0.42996122,99253.0,99252.0,0.005]
[1733648148529,0.42996122,99253.0,99230.0,0.0008661]
[1733648148530,0.181385,99237.0,99230.0,0.0008661]
[1733648148770,0.181394,99231.0,99230.0,0.0008661]
[1733648149263,0.18869888,99231.0,99230.0,0.0008661]
[1733648149986,0.18887167,99231.0,99230.0,0.0008661]
[1733648152302,0.18987167,99231.0,99230.0,0.0008661]
[1733648155099,0.00847767,99231.0,99230.0,0.0008661]
[1733648155334,0.00847767,99231.0,99230.0,0.0816661]
[1733648155568,0.00847767,99231.0,99230.0,0.08983271]
[1733648155799,0.00117279,99231.0,99230.0,0.0816661]
[1733648157851,0.00117279,99231.0,99230.0,0.1046661]
[1733648158598,0.00117279,99231.0,99230.0,0.0008661]
[1733648158599,0.00017279,99231.0,99230.0,0.0008661]
[1733648158836,0.00117279,99231.0,99230.0,0.0008661]
[1733648159080,0.00848185,99231.0,99230.0,0.0008661]
[1733648159312,0.00117279,99231.0,99230.0,0.02109331]
[1733648159534,0.00117279,99231.0,99230.0,0.20248931]
[1733648160237,0.00017279,99231.0,99230.0,0.20148931]
[1733648160449,0.00117279,99231.0,99230.0,0.02009331]
[1733648161368,0.00117279,99231.0,99230.0,0.01909331]
[1733648161586,0.00117279,99231.0,99230.0,0.0008661]
[1733648166949,0.12917279,99231.0,99230.0,1e-07]
[1733648167214,0.12917279,99231.0,99210.0,0.0008665]
[1733648167215,0.362852,99214.0,99210.0,0.0008665]
[1733648167652,0.181429,99212.0,99210.0,0.0008665]
[1733648168144,0.00625512,99211.0,99210.0,0.0008665]
[1733648169119,0.227618,99219.0,99210.0,0.0008665]
[1733648169302,0.00625877,99211.0,99210.0,0.0008665]
[1733648169552,0.002,99211.0,99210.0,0.0008665]
[1733648169771,0.02802669,99211.0,99210.0,0.0008665]
[1733648170017,0.002,99211.0,99210.0,0.0008665]
[1733648170266,0.01326059,99211.0,99210.0,0.0018665]
[1733648170456,0.00826059,99211.0,99210.0,0.0008665]
[1733648170786,0.01326059,99211.0,99210.0,0.0008665]
[1733648171026,0.01126059,99211.0,99210.0,0.0008665]
[1733648171953,0.01326059,99211.0,99210.0,0.0008665]
[1733648172428,0.007,99211.0,99210.0,0.0008665]
[1733648172899,0.01324249,99211.0,99210.0,0.0008665]
[1733648176396,0.007,99211.0,99210.0,0.0008665]
[1733648176713,0.002,99211.0,99210.0,0.0008665]
[1733648176946,0.003,99211.0,99210.0,0.0008665]
[1733648177384,0.004,99211.0,99210.0,0.0008665]
[1733648179435,0.001,99211.0,99210.0,0.0008665]
[1733648179882,0.004,99211.0,99210.0,0.0008665]
[1733648180098,0.02047566,99217.0,99210.0,0.0008665]
[1733648180368,0.002,99211.0,99210.0,0.0008665]
[1733648180847,0.00722923,99211.0,99210.0,0.0008665]
[1733648181060,0.001,99211.0,99210.0,0.0008665]
[1733648181278,0.00722923,99211.0,99210.0,0.0008665]
[1733648181505,0.001,99211.0,99210.0,0.0008665]
[1733648181732,0.00622923,99211.0,99210.0,0.0008665]
[1733648181954,0.181425,99215.0,99210.0,0.0008665]
[1733648182215,0.00622923,99211.0,99210.0,0.0008665]
[1733648182468,0.0062274,99214.0,99210.0,0.0008665]
[1733648182676,0.00722923,99211.0,99210.0,0.0008665]
[1733648182892,0.001,99211.0,99210.0,0.0008665]
[1733648183102,0.00722923,99211.0,99210.0,0.0008665]
[1733648183329,0.001,99211.0,99210.0,0.0008665]
[1733648183543,0.00722923,99211.0,99210.0,0.0008665]
[1733648183753,0.001,99211.0,99210.0,0.0008665]
[1733648183981,0.00722923,99211.0,99210.0,0.0008665]
[1733648184217,0.001,99211.0,99210.0,0.0008665]
[1733648184435,0.05651364,99211.0,99210.0,0.0008665]
[1733648184657,0.0503,99211.0,99210.0,0.0008665]
[1733648184871,0.05651271,99211.0,99210.0,0.0008665]
[1733648185085,0.05495953,99211.0,99210.0,0.0008665]
[1733648187991,0.00565953,99211.0,99210.0,0.0008665]
[1733648194319,0.00845297,99211.0,99210.0,0.0008665]
[1733648194530,0.001,99211.0,99210.0,0.0008665]
[1733648194732,0.00845235,99211.0,99210.0,0.0008665]
[1733648194939,0.001,99211.0,99210.0,0.0008665]
[1733648195148,0.00845235,99211.0,99210.0,0.0008665]
[1733648195368,0.001,99211.0,99210.0,0.0008665]
[1733648195574,0.00845235,99211.0,99210.0,0.0008665]
[1733648196427,0.09055235,99211.0,99210.0,0.0008665]
[1733648196643,0.24790116,99211.0,99210.0,0.0008665]
[1733648196850,0.34360116,99211.0,99210.0,0.0008665]
[1733648200113,0.34460116,99211.0,99210.0,0.0008665]
[1733648200328,0.34960116,99211.0,99210.0,0.0018665]
[1733648207675,0.35266151,99211.0,99210.0,0.0018665]
[1733648212897,0.231468,99191.0,99190.0,9e-07]
[1733648213100,0.231468,99191.0,99180.0,0.0008659]
[1733648213101,0.231486,99181.0,99180.0,0.0008659]
[1733648213312,0.33151551,99181.0,99180.0,0.0008659]
[1733648213539,0.4156325,99181.0,99180.0,0.0008659]
[1733648213752,0.4613325,99181.0,99180.0,0.0008659]
[1733648214193,0.48169036,99181.0,99180.0,0.0008659]
[1733648214405,0.48169036,99181.0,99176.0,0.0002]
[1733648214407,0.05,99177.0,99176.0,0.0002]
[1733648214625,0.27242951,99177.0,99176.0,0.0002]
[1733648214848,0.47971535,99177.0,99176.0,0.0002]
[1733648215282,0.231511,99167.0,99166.0,0.010095]
[1733648215526,0.33154051,99167.0,99166.0,0.010095]
[1733648215734,0.48995855,99167.0,99166.0,0.010095]
[1733648216657,0.48995855,99167.0,99150.0,0.0008663]
[1733648216658,0.181539,99152.0,99150.0,0.0008663]
[1733648216878,0.33156851,99152.0,99150.0,0.0008663]
[1733648217095,0.33880584,99152.0,99150.0,0.0008663]
[1733648217316,0.51053676,99152.0,99150.0,0.0008663]
[1733648217537,0.51053676,99152.0,99151.0,0.24676895]
[1733648217968,0.51053676,99152.0,99151.0,0.11105654]
[1733648218404,0.51053676,99152.0,99151.0,0.07782136]
[1733648219027,1.04729396,99152.0,99151.0,0.07782136]
[1733648219293,1.04729396,99152.0,99151.0,0.0398628]
[1733648219508,1.05229396,99152.0,99151.0,0.0398628]
[1733648219934,1.04929396,99152.0,99151.0,0.0398628]
[1733648220189,1.05529396,99152.0,99151.0,0.0398628]
[1733648221016,1.07550586,99152.0,99151.0,0.0398628]
[1733648221691,1.06750586,99152.0,99151.0,0.0398628]
[1733648221902,1.06750586,99152.0,99151.0,0.00100001]
[1733648221903,1.07350586,99152.0,99151.0,0.00100001]
[1733648222129,0.05,99131.0,99130.0,0.0061133]
[1733648222340,0.15002951,99131.0,99130.0,0.0061133]
[1733648222584,0.15452678,99131.0,99130.0,0.0061133]
[1733648223031,0.15452678,99131.0,99100.0,0.006]
[1733648223032,0.181612,99112.0,99100.0,0.006]
[1733648223257,0.33166051,99102.0,99100.0,0.006]
[1733648223473,0.33166051,99102.0,99101.0,0.07725249]
[1733648223474,0.28623753,99102.0,99101.0,0.07725249]
[1733648223687,0.29140528,99102.0,99101.0,0.07725249]
[1733648223918,0.33870851,99102.0,99101.0,0.07725249]
[1733648224406,1.19710851,99102.0,99101.0,0.05337688]
[1733648224628,1.19710851,99102.0,99101.0,0.00037987]
[1733648224842,0.25,99101.0,99100.0,0.00137987]
[1733648225061,0.3560336,99101.0,99100.0,0.00137987]
[1733648225281,0.45584894,99101.0,99100.0,0.00137987]
[1733648225763,0.45584894,99101.0,99068.0,0.014895]
[1733648225764,0.05,99069.0,99068.0,0.014895]
[1733648225976,0.10002951,99069.0,99068.0,0.014895]
[1733648226197,0.05,99092.0,99069.0,0.181691]
[1733648226431,0.00017234,99069.0,99068.0,0.196588]
[1733648226629,0.00017234,99069.0,99068.0,0.014895]
[1733648226845,0.10020185,99069.0,99068.0,0.014895]
[1733648228248,0.00217234,99069.0,99068.0,0.014895]
[1733648228691,0.00417234,99069.0,99068.0,0.014895]
[1733648228919,0.181622,99107.0,99068.0,0.014895]
[1733648228920,0.05,99120.0,99108.0,0.181618]
[1733648229149,0.10002951,99119.0,99108.0,0.181618]
[1733648229610,0.10002951,99119.0,99113.0,0.18161]
[1733648229846,0.181578,99131.0,99125.0,0.181588]
[1733648229847,0.05,99131.0,99125.0,0.181588]
[1733648230090,0.5337,99144.0,99109.0,0.11743975]
[1733648230091,0.10002951,99130.0,99110.0,0.181616]
[1733648230368,0.181536,99154.0,99140.0,0.18156]
[1733648230594,0.0001734,99131.0,99130.0,0.354579]
[1733648231091,0.0001734,99131.0,99130.0,0.50460851]
[1733648231319,0.10002951,99171.0,99141.0,0.173]
[1733648231560,0.10002951,99170.0,99164.0,0.181516]
[1733648231849,0.00624851,99170.0,99160.0,0.11743975]
[1733648232087,0.05,99205.0,99160.0,0.11743975]
[1733648232088,0.05,99202.0,99161.0,0.023]
[1733648232297,0.10002951,99193.0,99184.0,0.181479]
[1733648232509,0.00629369,99192.0,99184.0,0.181479]
[1733648232932,0.10002951,99193.0,99184.0,0.181479]
[1733648233173,0.10002951,99193.0,99172.0,0.181502]
[1733648233384,0.10502951,99193.0,99174.0,0.181499]
[1733648233608,0.00629369,99192.0,99174.0,0.181499]
[1733648235268,0.181468,99191.0,99170.0,0.181506]
[1733648235485,0.00693628,99192.0,99176.0,0.181495]
[1733648235770,0.10020287,99193.0,99177.0,0.181493]
[1733648235999,0.00387971,99191.0,99177.0,0.181493]
[1733648236213,0.181468,99191.0,99170.0,0.363012]
[1733648236688,0.00394666,99190.0,99170.0,0.363012]
[1733648237841,0.00394666,99190.0,99161.0,0.181522]
[1733648237842,0.05,99187.0,99161.0,0.181522]
[1733648238083,0.05,99187.0,99142.0,0.05]
[1733648238084,0.18149,99179.0,99155.0,0.181532]
[1733648238341,0.10397735,99186.0,99130.0,0.0786]
[1733648238342,0.15002951,99178.0,99130.0,0.0786]
[1733648238551,0.05,99177.0,99140.0,0.11743975]
[1733648238780,0.363012,99170.0,99147.0,0.181547]
[1733648239033,0.18151,99168.0,99147.0,0.181547]
[1733648239249,0.18151,99168.0,99140.0,0.11743975]
[1733648239250,0.10002951,99167.0,99152.0,0.181538]
[1733648239476,0.00392742,99166.0,99155.0,0.001]
[1733648239738,0.10395693,99166.0,99155.0,0.001]
[1733648239965,0.10395693,99166.0,99152.0,0.181538]
[1733648240201,0.00392742,99166.0,99157.0,0.181528]
[1733648240437,0.231481,99184.0,99164.0,0.181517]
[1733648240438,0.412962,99184.0,99164.0,0.181517]
[1733648240693,0.5337,99185.0,99160.0,0.11743975]
[1733648240694,0.00344628,99183.0,99160.0,0.11743975]
[1733648240976,0.00344628,99183.0,99161.0,0.023]
[1733648241222,0.00344628,99183.0,99175.0,0.181495]
[1733648241468,0.18163836,99193.0,99175.0,0.362991]
[1733648241697,0.181468,99191.0,99161.0,0.023]
[1733648241952,0.181471,99189.0,99170.0,0.181505]
[1733648242211,0.28150051,99189.0,99170.0,0.181505]
[1733648242437,0.00344765,99188.0,99170.0,0.363011]
[1733648242935,0.181475,99187.0,99170.0,0.181505]
[1733648243174,0.005,99183.0,99170.0,0.363011]
[1733648243415,0.10202951,99189.0,99172.0,0.181502]
[1733648243628,0.007,99188.0,99177.0,0.181492]
[1733648243857,0.007,99188.0,99178.0,0.11743975]
[1733648244080,0.002,99189.0,99185.0,0.181477]
[1733648244295,0.007,99187.0,99185.0,0.362954]
[1733648244538,0.002,99189.0,99185.0,0.362954]
[1733648244802,0.00017336,99193.0,99185.0,0.181477]
[1733648245018,0.001,99187.0,99185.0,0.181477]
[1733648245449,0.00017336,99193.0,99185.0,0.181477]
[1733648245683,0.00017336,99193.0,99185.0,0.362955]
[1733648245910,0.007,99188.0,99185.0,0.363605]
[1733648246154,0.00017336,99193.0,99187.0,0.181475]
[1733648246658,0.05,99191.0,99138.0,0.0753]
[1733648246904,0.181493,99178.0,99159.0,0.181525]
[1733648247372,0.181495,99176.0,99159.0,0.181525]
[1733648247621,0.00347541,99177.0,99159.0,0.181525]
[1733648247837,0.181499,99174.0,99155.0,0.181532]
[1733648248061,0.00346935,99173.0,99155.0,0.181532]
[1733648248287,0.00346935,99173.0,99159.0,0.181525]
[1733648248763,0.181493,99178.0,99159.0,0.181525]
[1733648249216,0.00347541,99177.0,99150.0,0.11743975]
[1733648249451,0.181485,99182.0,99159.0,0.001]
[1733648249695,0.181488,99180.0,99160.0,0.181524]
[1733648249908,0.10002951,99179.0,99160.0,0.181524]
[1733648250128,0.10002951,99179.0,99165.0,0.181514]
[1733648250381,0.00347541,99178.0,99165.0,0.181514]
[1733648250593,0.181493,99177.0,99161.0,0.181522]
[1733648250815,0.00347541,99178.0,99161.0,0.181522]
[1733648251089,0.10002951,99179.0,99155.0,0.002]
[1733648251346,0.10350492,99177.0,99155.0,0.002]
[1733648251581,0.10002951,99177.0,99155.0,0.002]
[1733648251795,0.18151,99169.0,99152.0,0.181538]
[1733648252008,0.181497,99175.0,99152.0,0.181538]
[1733648252224,0.181506,99171.0,99159.0,0.002]
[1733648252657,0.181506,99171.0,99154.0,0.181535]
[1733648252870,0.00347858,99170.0,99155.0,0.001]
[1733648253112,0.00347858,99170.0,99156.0,0.17944278]
[1733648253335,0.00347858,99170.0,99153.0,0.0181538]
[1733648253581,0.181508,99169.0,99153.0,0.0181538]
[1733648253787,0.181508,99169.0,99159.0,0.002]
[1733648254055,0.181511,99167.0,99159.0,0.002]
[1733648254527,0.181515,99165.0,99159.0,0.002]
[1733648254761,0.181524,99161.0,99159.0,0.002]
[1733648254990,0.181519,99163.0,99145.0,0.18155]
[1733648255228,0.00347858,99160.0,99156.0,0.002]
[1733648255507,0.181513,99166.0,99156.0,0.003]
[1733648255737,0.00347858,99159.0,99150.0,0.181541]
[1733648255949,0.181513,99166.0,99150.0,0.181541]
[1733648256203,0.001,99161.0,99159.0,0.003]
[1733648256434,0.00347858,99165.0,99159.0,0.002]
[1733648256642,0.00347858,99164.0,99150.0,0.00057599]
[1733648256867,0.00347858,99164.0,99156.0,0.002]
[1733648257081,0.181513,99166.0,99156.0,0.002]
[1733648257317,0.00347858,99165.0,99156.0,0.002]
[1733648257561,0.10002951,99164.0,99156.0,0.002]
[1733648257977,0.181526,99159.0,99150.0,0.00057599]
[1733648258401,0.00347188,99158.0,99150.0,0.00057599]
[1733648258618,0.10002951,99157.0,99150.0,0.00057599]
[1733648258835,0.18154,99152.0,99150.0,0.00057599]
[1733648259106,0.003425,99151.0,99150.0,0.00057599]
[1733648259549,0.36307,99154.0,99139.0,0.00616858]
[1733648259762,0.00405115,99151.0,99137.0,0.181566]
[1733648259972,0.0005779,99151.0,99150.0,0.001]
[1733648260450,0.00404707,99151.0,99137.0,0.181566]
[1733648260673,0.00404707,99151.0,99130.0,0.0008669]
[1733648260674,0.181544,99149.0,99133.0,0.15]
[1733648260904,0.181551,99146.0,99133.0,0.15]
[1733648261096,0.00346912,99148.0,99133.0,0.15]
[1733648261371,0.00345173,99145.0,99133.0,0.331572]
[1733648261589,0.00345154,99147.0,99133.0,0.331572]
[1733648261835,0.0005779,99151.0,99137.0,0.181565]
[1733648262052,0.00344332,99146.0,99137.0,0.181565]
[1733648262276,0.0005779,99151.0,99130.0,0.0008669]
[1733648262532,0.00345154,99150.0,99146.0,0.181549]
[1733648262773,0.00345154,99150.0,99146.0,0.363098]
[1733648263042,0.0005779,99151.0,99146.0,0.363098]
[1733648266632,0.1670849,99170.0,99156.0,0.181531]
[1733648266888,0.10002951,99169.0,99156.0,0.181531]
[1733648267099,0.00345124,99169.0,99160.0,0.181523]
[1733648267340,0.00345124,99169.0,99156.0,0.1996841]
[1733648267341,0.00345124,99169.0,99164.0,0.181516]
[1733648267554,0.00017327,99170.0,99156.0,0.0181531]
[1733648267785,0.00117327,99170.0,99168.0,0.181508]
[1733648268450,0.00017327,99170.0,99168.0,0.181508]
[1733648268682,0.00617327,99170.0,99168.0,0.181508]
[1733648268906,0.001,99169.0,99168.0,0.181508]
[1733648269140,0.20172247,99193.0,99176.0,0.181495]
[1733648269340,0.28150151,99189.0,99176.0,0.181495]
[1733648269603,0.28496168,99189.0,99176.0,0.1996445]
[1733648269823,0.10348968,99189.0,99180.0,0.181487]
[1733648270045,0.00346017,99189.0,99180.0,0.181487]
[1733648270272,0.00346017,99189.0,99184.0,0.181479]
[1733648270518,0.231154,99199.0,99184.0,0.181479]
[1733648270730,0.006,99189.0,99186.0,0.181476]
[1733648271418,0.006,99189.0,99181.0,0.181485]
[1733648271886,0.003734,99190.0,99181.0,0.181485]
[1733648272078,0.006,99189.0,99181.0,0.181485]
[1733648272305,0.001734,99190.0,99181.0,0.181485]
[1733648272433,0.001734,99190.0,99181.0,0.36297]
[1733648272648,0.007,99189.0,99185.0,0.181478]
[1733648273505,0.001,99189.0,99186.0,0.181476]
[1733648273717,0.007,99189.0,99186.0,0.181476]
[1733648274357,0.006,99189.0,99186.0,0.181476]
[1733648274808,0.181473,99188.0,99173.0,0.0762]
[1733648275020,0.002734,99190.0,99172.0,0.181502]
[1733648275248,0.001734,99190.0,99172.0,0.1996512]
[1733648275453,0.007,99189.0,99172.0,0.1996512]
[1733648275693,0.00343193,99188.0,99172.0,0.363003]
[1733648275890,0.00843193,99188.0,99168.0,0.181508]
[1733648276136,0.00343193,99188.0,99161.0,0.05]
[1733648276354,0.00343193,99188.0,99176.0,0.181494]
[1733648276579,0.008734,99190.0,99176.0,0.181494]
[1733648276803,0.00343055,99187.0,99176.0,0.181494]
[1733648277055,0.00343331,99189.0,99176.0,0.181494]
[1733648277257,0.00342918,99186.0,99176.0,0.181494]
[1733648277425,0.005,99188.0,99176.0,0.181494]
[1733648277645,0.005,99188.0,99176.0,0.0181494]
[1733648277804,0.00343055,99187.0,99164.0,0.023]
[1733648278174,0.006,99188.0,99174.0,0.181498]
[1733648278390,0.001734,99190.0,99174.0,0.181498]
[1733648278627,0.00343306,99187.0,99174.0,0.181498]
[1733648278834,0.001,99188.0,99174.0,0.181498]
[1733648279044,0.00343168,99186.0,99174.0,0.181498]
[1733648279285,0.00343306,99187.0,99174.0,0.181498]
[1733648279497,0.00343168,99186.0,99177.0,0.181493]
[1733648279703,0.001,99188.0,99177.0,0.181493]
[1733648279920,0.00843306,99187.0,99177.0,0.181493]
[1733648280837,0.00843306,99187.0,99177.0,0.362986]
[1733648281052,0.00843306,99187.0,99177.0,0.181493]
[1733648281251,0.001,99186.0,99177.0,0.181493]
[1733648281679,0.005,99187.0,99177.0,0.362986]
[1733648281892,0.005,99187.0,99170.0,0.181505]
[1733648281893,0.00343168,99186.0,99178.0,0.181491]
[1733648282118,0.00343168,99186.0,99178.0,0.362982]
[1733648282362,0.001,99187.0,99164.0,0.023]
[1733648282585,0.001734,99190.0,99172.0,0.023]
[1733648282586,0.006,99188.0,99172.0,0.023]
[1733648282787,0.001734,99190.0,99187.0,0.362949]
[1733648283444,0.001734,99190.0,99187.0,0.181474]
[1733648284020,0.001734,99190.0,99187.0,0.362949]
[1733648285420,0.005734,99190.0,99187.0,0.362949]
[1733648285646,0.00318783,99190.0,99187.0,0.362949]
[1733648285857,0.00318783,99190.0,99181.0,0.181486]
[1733648286167,0.00318783,99190.0,99187.0,0.181474]
[1733648286602,0.0017338,99200.0,99187.0,0.181474]
[1733648287039,0.0017338,99200.0,99180.0,0.181487]
[1733648287040,0.004,99190.0,99180.0,0.181487]
[1733648287262,0.181457,99197.0,99180.0,0.181487]
[1733648287503,0.00346807,99196.0,99184.0,0.18148]
[1733648288657,0.00346807,99196.0,99170.0,0.181505]
[1733648288658,0.18222951,99195.0,99167.0,0.18151]
[1733648288874,0.18222951,99195.0,99161.0,0.0831]
[1733648288875,0.004,99190.0,99162.0,0.17400831]
[1733648289096,0.181468,99191.0,99176.0,0.181494]
[1733648289575,0.00349651,99190.0,99176.0,0.181494]
[1733648290684,0.181471,99189.0,99173.0,0.1815]
[1733648290916,0.181471,99189.0,99173.0,0.19965]
[1733648291172,0.00349651,99188.0,99173.0,0.19965]
[1733648292379,0.181475,99187.0,99173.0,0.19965]
[1733648292578,0.181475,99187.0,99169.0,0.181508]
[1733648292826,0.181475,99187.0,99173.0,0.1815]
[1733648292827,0.0471,99186.0,99173.0,0.1815]
[1733648293078,0.00349651,99186.0,99173.0,0.1815]
[1733648293322,0.1831858,99200.0,99183.0,0.181482]
[1733648293323,0.003,99188.0,99183.0,0.181482]
[1733648293626,0.0017338,99200.0,99197.0,0.181455]
[1733648295182,0.00390703,99200.0,99182.0,0.331483]
[1733648295399,0.181453,99199.0,99182.0,0.15]
[1733648295858,0.181453,99199.0,99181.0,0.181486]
[1733648295859,0.002,99186.0,99181.0,0.181486]
[1733648296096,0.002,99186.0,99164.0,0.01017012]
[1733648296342,0.18148,99185.0,99169.0,0.181507]
[1733648296776,0.00328288,99184.0,99169.0,0.181507]
[1733648296992,0.00328288,99184.0,99171.0,0.19974134]
[1733648297669,0.00328288,99184.0,99171.0,0.01823734]
[1733648297892,0.181477,99186.0,99171.0,0.01823734]
[1733648298324,0.00328288,99185.0,99171.0,0.01823734]
[1733648298564,0.00328288,99185.0,99162.0,0.181521]
[1733648298565,0.18148,99184.0,99170.0,0.0018664]
[1733648299253,0.00328288,99183.0,99170.0,0.0018664]
[1733648300187,0.00328288,99183.0,99170.0,0.0008664]
[1733648300424,0.181484,99182.0,99171.0,0.02153764]
[1733648300657,0.181492,99178.0,99171.0,0.001]
[1733648300871,0.181504,99171.0,99170.0,0.0008664]
[1733648301102,0.181504,99171.0,99170.0,0.0018664]
[1733648301326,0.18477875,99171.0,99170.0,0.0018664]
[1733648301774,0.18477875,99171.0,99170.0,0.0008664]
[1733648302700,0.18677875,99171.0,99170.0,0.0008664]
[1733648302914,0.18477875,99171.0,99170.0,0.0008664]
[1733648303372,0.18977875,99171.0,99170.0,0.0008664]
[1733648304066,0.18977875,99171.0,99170.0,0.0018664]
[1733648304505,0.18977875,99171.0,99170.0,0.0008664]
[1733648304717,0.19077875,99171.0,99170.0,0.0008664]
[1733648308421,0.46153916,99171.0,99170.0,0.0008664]
[1733648308657,0.41330826,99171.0,99170.0,0.0008664]
[1733648310038,0.41230826,99171.0,99170.0,0.0008664]
[1733648310503,0.41330826,99171.0,99170.0,0.0008664]
[1733648311157,0.40830826,99171.0,99170.0,0.0008664]
[1733648311375,0.41430826,99171.0,99170.0,0.0008664]
[1733648319188,0.45467526,99171.0,99170.0,0.0008664]
[1733648322900,0.25467526,99171.0,99170.0,0.0008664]
[1733648323166,0.44020479,99171.0,99170.0,0.0008664]
[1733648324356,0.24020479,99171.0,99170.0,0.0008664]
[1733648325521,0.24020479,99171.0,99170.0,0.00015988]
[1733648325990,0.03,99172.0,99170.0,0.00015988]
[1733648326222,0.00442781,99171.0,99170.0,0.00015988]
[1733648326431,0.18593181,99171.0,99170.0,0.00015988]
[1733648327370,0.00442781,99171.0,99170.0,0.00015988]
[1733648328036,0.00542781,99171.0,99170.0,0.00015988]
[1733648328276,0.18693181,99171.0,99170.0,0.00015988]
[1733648328763,0.28696132,99171.0,99170.0,0.00015988]
[1733648328974,0.36446132,99171.0,99170.0,0.00015988]
[1733648329203,0.16446132,99171.0,99170.0,0.00015988]
[1733648329417,0.49950733,99171.0,99170.0,0.00015988]
[1733648329655,1.08320733,99171.0,99170.0,0.00015988]
[1733648330536,1.12980733,99171.0,99170.0,0.00015988]
[1733648330970,1.14180733,99171.0,99170.0,0.00115988]
[1733648331203,1.13280733,99171.0,99170.0,0.00015988]
[1733648331416,1.12980733,99171.0,99170.0,0.00015988]
[1733648331625,1.23862267,99171.0,99170.0,8.8e-07]
[1733648331893,1.24462267,99171.0,99170.0,8.8e-07]
[1733648334286,1.14480733,99171.0,99170.0,8.8e-07]
[1733648336257,0.181541,99151.0,99130.0,0.0008669]
[1733648336529,0.35877051,99151.0,99130.0,0.0008669]
[1733648336753,0.41026847,99151.0,99130.0,0.0008669]
[1733648337467,0.28706847,99151.0,99130.0,0.0008669]
[1733648337683,0.29406847,99151.0,99150.0,0.0014445]
[1733648339282,0.19403896,99151.0,99150.0,0.0014445]
[1733648339539,0.01249796,99151.0,99150.0,0.0014445]
[1733648344989,0.009,99151.0,99150.0,0.0014445]
[1733648345645,0.009,99151.0,99150.0,0.0811445]
[1733648345869,0.181502,99173.0,99151.0,0.181541]
[1733648346083,0.181509,99169.0,99151.0,0.181541]
[1733648347233,0.181509,99169.0,99151.0,0.363082]
[1733648347461,0.19155037,99173.0,99160.0,0.181523]
[1733648347462,0.009,99166.0,99160.0,0.181523]
[1733648347707,0.009,99166.0,99160.0,0.0181523]
[1733648347931,0.012,99166.0,99157.0,0.181528]
[1733648348603,0.012,99166.0,99158.0,0.181528]
[1733648348837,0.012,99166.0,99160.0,0.181523]
[1733648349083,0.2021611,99179.0,99162.0,0.181521]
[1733648349320,0.0017312,99180.0,99170.0,0.181506]
[1733648349836,0.0017312,99180.0,99170.0,0.1778988]